[Event "Titled Tuesday Blitz February 28 Early 2023"]
[White "Rosen, Eric"]
[Black "Ronka, Erik"]
[WhiteFideId "2032562"]
[BlackFideId "505080"]
[WhiteElo "2359"]
[BlackElo "2264"]
[Result "0-1"]
[Round "03"]
[TimeControl "180+2"]
[Date "2023.02.28"]
[WhiteClock "0:00:07"]
[BlackClock "0:00:12"]

1. d4 {[%clk 0:03:00]}  d5 {[%clk 0:02:58]} 2. Bf4 {[%clk 0:02:59]}  c5 {[%clk 0:02:58]} 3. Nc3 {[%clk 0:02:58]}  Nf6 {[%clk 0:02:31]} 4. e4 {[%clk 0:02:54]}  Nxe4 {[%clk 0:02:25]} 5. Nxe4 {[%clk 0:02:54]}  dxe4 {[%clk 0:02:25]} 6. dxc5 {[%clk 0:02:53]}  Qxd1+ {[%clk 0:01:16]} 7. Rxd1 {[%clk 0:02:52]}  Nc6 {[%clk 0:01:15]} 8. Be3 {[%clk 0:02:51]}  e5 {[%clk 0:01:08]} 9. f3 {[%clk 0:02:22]}  exf3 {[%clk 0:01:05]} 10. Nxf3 {[%clk 0:02:22]}  Bd7 {[%clk 0:00:40]} 11. Bb5 {[%clk 0:02:19]}  f6 {[%clk 0:00:37]} 12. O-O {[%clk 0:02:16]}  O-O-O {[%clk 0:00:37]} 13. c3 {[%clk 0:02:16]}  Kc7 {[%clk 0:00:20]} 14. b4 {[%clk 0:02:14]}  Nb8 {[%clk 0:00:20]} 15. Bc4 {[%clk 0:02:07]}  Be7 {[%clk 0:00:19]} 16. Nd2 {[%clk 0:02:01]}  Ba4 {[%clk 0:00:19]} 17. Rde1 {[%clk 0:01:56]}  a5 {[%clk 0:00:15]} 18. b5 {[%clk 0:01:51]}  Nd7 {[%clk 0:00:13]} 19. Ne4 {[%clk 0:01:37]}  Bc2 {[%clk 0:00:13]} 20. Nd6 {[%clk 0:00:58]}  Bxd6 {[%clk 0:00:13]} 21. b6+ {[%clk 0:00:59]}  Kb8 {[%clk 0:00:13]} 22. cxd6 {[%clk 0:00:59]}  Ba4 {[%clk 0:00:09]} 23. Rd1 {[%clk 0:00:57]}  Bxd1 {[%clk 0:00:09]} 24. Rxd1 {[%clk 0:00:57]}  Rc8 {[%clk 0:00:10]} 25. Be6 {[%clk 0:00:56]}  Rhd8 {[%clk 0:00:10]} 26. c4 {[%clk 0:00:56]}  Rc6 {[%clk 0:00:10]} 27. Bxd7 {[%clk 0:00:48]}  Rxd7 {[%clk 0:00:11]} 28. c5 {[%clk 0:00:48]}  Kc8 {[%clk 0:00:11]} 29. Kf2 {[%clk 0:00:47]}  Kd8 {[%clk 0:00:11]} 30. Kf3 {[%clk 0:00:47]}  Ke8 {[%clk 0:00:11]} 31. Ke4 {[%clk 0:00:48]}  Kf7 {[%clk 0:00:12]} 32. Kd5 {[%clk 0:00:48]}  Rd8 {[%clk 0:00:12]} 33. Rd3 {[%clk 0:00:43]}  Ra8 {[%clk 0:00:12]} 34. a4 {[%clk 0:00:42]}  Rd8 {[%clk 0:00:10]} 35. Bd2 {[%clk 0:00:41]}  Re8 {[%clk 0:00:11]} 36. Bc3 {[%clk 0:00:27]}  Rec8 {[%clk 0:00:11]} 37. Bd4 {[%clk 0:00:05]}  exd4 {[%clk 0:00:10]} 38. d7 {[%clk 0:00:06]}  Rd8 {[%clk 0:00:10]} 39. Kc4 {[%clk 0:00:03]}  Rxd7 {[%clk 0:00:10]} 40. Kb5 {[%clk 0:00:04]}  Rd5 {[%clk 0:00:10]} 41. Kxa5 {[%clk 0:00:02]}  Rdxc5+ {[%clk 0:00:10]} 42. Kb4 {[%clk 0:00:02]}  Rd5 {[%clk 0:00:11]} 43. a5 {[%clk 0:00:02]}  Rcc5 {[%clk 0:00:10]} 44. Rxd4 {[%clk 0:00:01]}  Rxd4+ {[%clk 0:00:08]} 45. Kxc5 {[%clk 0:00:02]}  Ra4 {[%clk 0:00:09]} 46. Kb5 {[%clk 0:00:03]}  Ra1 {[%clk 0:00:09]} 47. g3 {[%clk 0:00:02]}  Ke6 {[%clk 0:00:09]} 48. h3 {[%clk 0:00:02]}  Kd6 {[%clk 0:00:09]} 49. h4 {[%clk 0:00:03]}  Kd5 {[%clk 0:00:10]} 50. h5 {[%clk 0:00:02]}  g6 {[%clk 0:00:10]} 51. g4 {[%clk 0:00:02]}  gxh5 {[%clk 0:00:09]} 52. gxh5 {[%clk 0:00:03]}  f5 {[%clk 0:00:10]} 53. a6 {[%clk 0:00:03]}  Rxa6 {[%clk 0:00:09]} 54. Kb4 {[%clk 0:00:04]}  f4 {[%clk 0:00:09]} 55. Kc3 {[%clk 0:00:05]}  Rxb6 {[%clk 0:00:10]} 56. Kd2 {[%clk 0:00:06]}  Rh6 {[%clk 0:00:10]} 57. Ke2 {[%clk 0:00:07]}  Rxh5 {[%clk 0:00:10]} 58. Kf2 {[%clk 0:00:07]}  Re5 {[%clk 0:00:11]} 59. Kf3 {[%clk 0:00:07]}  b5 {[%clk 0:00:12]} 0-1


[Site "https://www.chess.com"]

[Event "Titled Tuesday Blitz February 28 Early 2023"]
[White "Kuzmin, Roman"]
[Black "Barrientos, Sergio E"]
[WhiteFideId "44134932"]
[BlackFideId "4401824"]
[WhiteElo "2146"]
[BlackElo "2408"]
[Result "0-1"]
[Round "03"]
[TimeControl "180+2"]
[Date "2023.02.28"]
[WhiteClock "0:00:01"]
[BlackClock "0:01:06"]

1. e4 {[%clk 0:03:00]}  e5 {[%clk 0:02:56]} 2. Nf3 {[%clk 0:03:00]}  Nf6 {[%clk 0:02:55]} 3. Nxe5 {[%clk 0:03:00]}  d6 {[%clk 0:02:52]} 4. Nf3 {[%clk 0:03:00]}  Nxe4 {[%clk 0:02:52]} 5. d4 {[%clk 0:03:00]}  d5 {[%clk 0:02:52]} 6. Bd3 {[%clk 0:03:01]}  Bd6 {[%clk 0:02:51]} 7. O-O {[%clk 0:03:01]}  O-O {[%clk 0:02:51]} 8. c4 {[%clk 0:03:02]}  c6 {[%clk 0:02:50]} 9. Re1 {[%clk 0:03:00]}  Bf5 {[%clk 0:02:47]} 10. Qb3 {[%clk 0:03:00]}  Qd7 {[%clk 0:02:31]} 11. Nh4 {[%clk 0:02:33]}  Be6 {[%clk 0:02:18]} 12. Nc3 {[%clk 0:01:59]}  Nxc3 {[%clk 0:02:15]} 13. bxc3 {[%clk 0:02:00]}  Na6 {[%clk 0:02:02]} 14. c5 {[%clk 0:01:47]}  Be7 {[%clk 0:01:57]} 15. Nf3 {[%clk 0:01:47]}  Qc8 {[%clk 0:01:52]} 16. Qc2 {[%clk 0:01:44]}  h6 {[%clk 0:01:51]} 17. Bf4 {[%clk 0:01:15]}  Nc7 {[%clk 0:01:50]} 18. Re2 {[%clk 0:00:03]}  Re8 {[%clk 0:01:49]} 19. Rae1 {[%clk 0:00:03]}  Bf8 {[%clk 0:01:45]} 20. Bxc7 {[%clk 0:00:03]}  Qxc7 {[%clk 0:01:45]} 21. Bf5 {[%clk 0:00:04]}  Bxf5 {[%clk 0:01:42]} 22. Qxf5 {[%clk 0:00:05]}  Rxe2 {[%clk 0:01:41]} 23. Rxe2 {[%clk 0:00:06]}  b6 {[%clk 0:01:40]} 24. cxb6 {[%clk 0:00:03]}  axb6 {[%clk 0:01:40]} 25. Ne5 {[%clk 0:00:03]}  Re8 {[%clk 0:01:37]} 26. Qf3 {[%clk 0:00:02]}  Re6 {[%clk 0:01:34]} 27. Nd3 {[%clk 0:00:01]}  Qe7 {[%clk 0:01:32]} 28. Rxe6 {[%clk 0:00:01]}  Qxe6 {[%clk 0:01:33]} 29. Qe3 {[%clk 0:00:02]}  Qf5 {[%clk 0:01:32]} 30. h3 {[%clk 0:00:02]}  Kh7 {[%clk 0:01:19]} 31. Qd2 {[%clk 0:00:02]}  Bd6 {[%clk 0:01:18]} 32. g3 {[%clk 0:00:01]}  Qxh3 {[%clk 0:01:18]} 33. Qe3 {[%clk 0:00:02]}  Qf5 {[%clk 0:01:18]} 34. Kg2 {[%clk 0:00:01]}  Qe4+ {[%clk 0:01:17]} 35. Qxe4+ {[%clk 0:00:01]}  dxe4 {[%clk 0:01:18]} 36. Nc1 {[%clk 0:00:02]}  f5 {[%clk 0:01:18]} 37. Kf1 {[%clk 0:00:02]}  g5 {[%clk 0:01:18]} 38. Ke2 {[%clk 0:00:03]}  f4 {[%clk 0:01:17]} 39. gxf4 {[%clk 0:00:03]}  gxf4 {[%clk 0:01:18]} 40. Nb3 {[%clk 0:00:03]}  h5 {[%clk 0:01:16]} 41. c4 {[%clk 0:00:04]}  h4 {[%clk 0:01:16]} 42. c5 {[%clk 0:00:05]}  bxc5 {[%clk 0:01:17]} 43. dxc5 {[%clk 0:00:06]}  Be5 {[%clk 0:01:15]} 44. a4 {[%clk 0:00:05]}  h3 {[%clk 0:01:15]} 45. Kf1 {[%clk 0:00:06]}  f3 {[%clk 0:01:14]} 46. Kg1 {[%clk 0:00:06]}  h2+ {[%clk 0:01:13]} 47. Kh1 {[%clk 0:00:07]}  e3 {[%clk 0:01:14]} 48. fxe3 {[%clk 0:00:07]}  f2 {[%clk 0:01:14]} 49. Nd2 {[%clk 0:00:07]}  Bc7 {[%clk 0:01:09]} 50. Nf1 {[%clk 0:00:06]}  Kg6 {[%clk 0:01:08]} 51. a5 {[%clk 0:00:06]}  Bxa5 {[%clk 0:01:06]} 52. Kxh2 {[%clk 0:00:06]}  Kf5 {[%clk 0:01:07]} 53. Kg2 {[%clk 0:00:06]}  Be1 {[%clk 0:01:06]} 54. Kf3 {[%clk 0:00:06]}  Ke5 {[%clk 0:01:07]} 55. Ke2 {[%clk 0:00:02]}  Kd5 {[%clk 0:01:07]} 56. Kd3 {[%clk 0:00:02]}  Kxc5 {[%clk 0:01:07]} 57. Ke2 {[%clk 0:00:02]}  Kc4 {[%clk 0:01:07]} 58. Kd1 {[%clk 0:00:02]}  Kd3 {[%clk 0:01:07]} 59. e4 {[%clk 0:00:01]}  Kxe4 {[%clk 0:01:07]} 60. Ke2 {[%clk 0:00:02]}  c5 {[%clk 0:01:08]} 61. Ng3+ {[%clk 0:00:02]}  Kd4 {[%clk 0:01:08]} 62. Nf5+ {[%clk 0:00:03]}  Kd5 {[%clk 0:01:07]} 63. Ne3+ {[%clk 0:00:03]}  Ke4 {[%clk 0:01:07]} 64. Nc2 {[%clk 0:00:03]}  c4 {[%clk 0:01:06]} 65. Na3 {[%clk 0:00:03]}  Kd4 {[%clk 0:01:05]} 66. Nb5+ {[%clk 0:00:03]}  Kc5 {[%clk 0:01:06]} 67. Na3 {[%clk 0:00:03]}  Kb4 {[%clk 0:01:06]} 68. Nc2+ {[%clk 0:00:04]}  Kb3 {[%clk 0:01:06]} 69. Nd4+ {[%clk 0:00:04]}  Kb2 {[%clk 0:01:07]} 70. Nb5 {[%clk 0:00:01]}  c3 {[%clk 0:01:06]} 71. Nd4 {[%clk 0:00:01]}  c2 {[%clk 0:01:06]} 0-1


[Site "https://www.chess.com"]

[Event "Titled Tuesday Blitz February 28 Early 2023"]
[White "Md, Imran"]
[Black "Valgmae, Toomas"]
[WhiteFideId "25748580"]
[BlackFideId "4502523"]
[WhiteElo "2217"]
[BlackElo "2170"]
[Result "1-0"]
[Round "03"]
[TimeControl "180+2"]
[Date "2023.02.28"]
[WhiteClock "0:00:21"]
[BlackClock "0:00:24"]

1. d4 {[%clk 0:01:40]}  d5 {[%clk 0:02:58]} 2. Bf4 {[%clk 0:01:37]}  c6 {[%clk 0:02:58]} 3. Nf3 {[%clk 0:01:37]}  Qb6 {[%clk 0:02:59]} 4. Qc1 {[%clk 0:01:28]}  Bg4 {[%clk 0:02:58]} 5. Nbd2 {[%clk 0:01:24]}  e6 {[%clk 0:02:57]} 6. e3 {[%clk 0:01:23]}  Nf6 {[%clk 0:02:55]} 7. Ne5 {[%clk 0:01:21]}  Bf5 {[%clk 0:02:54]} 8. c4 {[%clk 0:01:21]}  Nbd7 {[%clk 0:02:54]} 9. c5 {[%clk 0:01:19]}  Qd8 {[%clk 0:02:54]} 10. Be2 {[%clk 0:01:16]}  Nxe5 {[%clk 0:02:53]} 11. Bxe5 {[%clk 0:01:15]}  Be7 {[%clk 0:02:53]} 12. h4 {[%clk 0:01:10]}  O-O {[%clk 0:02:53]} 13. Bxf6 {[%clk 0:01:07]}  Bxf6 {[%clk 0:02:49]} 14. g4 {[%clk 0:01:07]}  Bg6 {[%clk 0:02:42]} 15. h5 {[%clk 0:01:04]}  Be4 {[%clk 0:02:41]} 16. f3 {[%clk 0:01:03]}  e5 {[%clk 0:02:35]} 17. dxe5 {[%clk 0:01:01]}  Bxe5 {[%clk 0:02:30]} 18. fxe4 {[%clk 0:01:02]}  Bg3+ {[%clk 0:02:28]} 19. Kd1 {[%clk 0:01:02]}  dxe4 {[%clk 0:02:26]} 20. Qc4 {[%clk 0:01:03]}  b5 {[%clk 0:02:08]} 21. Qxe4 {[%clk 0:01:02]}  Re8 {[%clk 0:02:06]} 22. Qf3 {[%clk 0:01:00]}  Be5 {[%clk 0:02:05]} 23. Kc2 {[%clk 0:01:00]}  Qe7 {[%clk 0:01:57]} 24. Raf1 {[%clk 0:00:51]}  Qxc5+ {[%clk 0:01:52]} 25. Kb1 {[%clk 0:00:50]}  Re7 {[%clk 0:01:51]} 26. Qf5 {[%clk 0:00:43]}  Qxe3 {[%clk 0:01:44]} 27. Qd3 {[%clk 0:00:43]}  Qxd3+ {[%clk 0:00:50]} 28. Bxd3 {[%clk 0:00:42]}  Rd8 {[%clk 0:00:50]} 29. Kc2 {[%clk 0:00:39]}  Red7 {[%clk 0:00:50]} 30. Rf3 {[%clk 0:00:35]}  Bxb2 {[%clk 0:00:49]} 31. Ne4 {[%clk 0:00:35]}  Be5 {[%clk 0:00:45]} 32. h6 {[%clk 0:00:34]}  g6 {[%clk 0:00:44]} 33. Rhf1 {[%clk 0:00:34]}  a6 {[%clk 0:00:41]} 34. Be2 {[%clk 0:00:32]}  c5 {[%clk 0:00:38]} 35. Rd3 {[%clk 0:00:26]}  c4 {[%clk 0:00:36]} 36. Rxd7 {[%clk 0:00:25]}  Rxd7 {[%clk 0:00:36]} 37. Nf6+ {[%clk 0:00:22]}  Bxf6 {[%clk 0:00:36]} 38. Rxf6 {[%clk 0:00:23]}  Ra7 {[%clk 0:00:35]} 39. Bf3 {[%clk 0:00:18]}  Kf8 {[%clk 0:00:35]} 40. Rb6 {[%clk 0:00:18]}  Ke7 {[%clk 0:00:35]} 41. Rb7+ {[%clk 0:00:19]}  Rxb7 {[%clk 0:00:34]} 42. Bxb7 {[%clk 0:00:19]}  a5 {[%clk 0:00:32]} 43. Ba6 {[%clk 0:00:20]}  b4 {[%clk 0:00:29]} 44. Bxc4 {[%clk 0:00:20]}  Kf6 {[%clk 0:00:28]} 45. Kb3 {[%clk 0:00:20]}  Kg5 {[%clk 0:00:28]} 46. Bxf7 {[%clk 0:00:20]}  Kxh6 {[%clk 0:00:24]} 47. Ka4 {[%clk 0:00:20]}  Kg5 {[%clk 0:00:24]} 48. Kxa5 {[%clk 0:00:20]}  Kxg4 {[%clk 0:00:24]} 49. Kxb4 {[%clk 0:00:21]} 1-0


[Site "https://www.chess.com"]

[Event "Titled Tuesday Blitz February 28 Early 2023"]
[White "Primbetov, Kazbek"]
[Black "Vaibhav Jayant Raut"]
[WhiteFideId "13702297"]
[BlackFideId "5089034"]
[WhiteElo "2097"]
[BlackElo "2156"]
[Result "0-1"]
[Round "03"]
[TimeControl "180+2"]
[Date "2023.02.28"]
[WhiteClock "0:00:07"]
[BlackClock "0:00:02"]

1. e4 {[%clk 0:03:00]}  c5 {[%clk 0:02:59]} 2. Nf3 {[%clk 0:03:00]}  d6 {[%clk 0:02:58]} 3. d4 {[%clk 0:03:00]}  cxd4 {[%clk 0:02:59]} 4. Nxd4 {[%clk 0:03:01]}  Nf6 {[%clk 0:02:59]} 5. Nc3 {[%clk 0:03:02]}  Nc6 {[%clk 0:03:00]} 6. Bc4 {[%clk 0:03:02]}  Bd7 {[%clk 0:02:48]} 7. O-O {[%clk 0:02:59]}  e6 {[%clk 0:02:48]} 8. Bb3 {[%clk 0:02:59]}  Be7 {[%clk 0:02:46]} 9. Be3 {[%clk 0:02:58]}  O-O {[%clk 0:02:41]} 10. f4 {[%clk 0:02:58]}  Rc8 {[%clk 0:02:37]} 11. f5 {[%clk 0:02:56]}  e5 {[%clk 0:02:32]} 12. Nde2 {[%clk 0:02:44]}  Ng4 {[%clk 0:02:29]} 13. Bf2 {[%clk 0:02:17]}  Nxf2 {[%clk 0:02:19]} 14. Rxf2 {[%clk 0:02:18]}  Bg5 {[%clk 0:01:52]} 15. Nd5 {[%clk 0:02:17]}  Na5 {[%clk 0:01:43]} 16. Nec3 {[%clk 0:02:08]}  b5 {[%clk 0:01:32]} 17. Rf3 {[%clk 0:01:27]}  b4 {[%clk 0:01:29]} 18. Ne2 {[%clk 0:01:20]}  Nxb3 {[%clk 0:01:27]} 19. axb3 {[%clk 0:01:20]}  Bc6 {[%clk 0:01:26]} 20. c4 {[%clk 0:01:19]}  bxc3 {[%clk 0:01:18]} 21. Nexc3 {[%clk 0:01:19]}  Bxd5 {[%clk 0:01:18]} 22. Nxd5 {[%clk 0:01:19]}  f6 {[%clk 0:00:59]} 23. Rc3 {[%clk 0:01:16]}  Qd7 {[%clk 0:00:50]} 24. Qc2 {[%clk 0:01:11]}  Rxc3 {[%clk 0:00:47]} 25. bxc3 {[%clk 0:01:06]}  Rb8 {[%clk 0:00:35]} 26. c4 {[%clk 0:01:04]}  Qb7 {[%clk 0:00:31]} 27. b4 {[%clk 0:01:03]}  Rc8 {[%clk 0:00:22]} 28. c5 {[%clk 0:00:54]}  Kh8 {[%clk 0:00:16]} 29. Qa4 {[%clk 0:00:30]}  dxc5 {[%clk 0:00:13]} 30. bxc5 {[%clk 0:00:28]}  Qb2 {[%clk 0:00:12]} 31. Qxa7 {[%clk 0:00:21]}  Qd4+ {[%clk 0:00:10]} 32. Kh1 {[%clk 0:00:21]}  h5 {[%clk 0:00:08]} 33. c6 {[%clk 0:00:19]}  Rxc6 {[%clk 0:00:05]} 34. Qxd4 {[%clk 0:00:14]}  exd4 {[%clk 0:00:06]} 35. Rd1 {[%clk 0:00:15]}  d3 {[%clk 0:00:03]} 36. g3 {[%clk 0:00:14]}  d2 {[%clk 0:00:02]} 37. Nf4 {[%clk 0:00:07]}  Bxf4 {[%clk 0:00:02]} 38. gxf4 {[%clk 0:00:07]}  Rc1 {[%clk 0:00:02]} 0-1


[Site "https://www.chess.com"]

[Event "Titled Tuesday Blitz February 28 Early 2023"]
[White "Belozerov, Andrei"]
[Black "Ramirez Allo, Eduardo"]
[WhiteFideId "4120213"]
[BlackFideId "2224178"]
[WhiteElo "2360"]
[BlackElo "2473"]
[Result "1-0"]
[Round "03"]
[TimeControl "180+2"]
[Date "2023.02.28"]
[WhiteClock "0:00:48"]
[BlackClock "0:00:06"]

1. e4 {[%clk 0:03:00]}  c5 {[%clk 0:03:00]} 2. Nf3 {[%clk 0:03:00]}  d6 {[%clk 0:03:00]} 3. Bb5+ {[%clk 0:03:00]}  Nd7 {[%clk 0:03:00]} 4. a4 {[%clk 0:02:59]}  Nf6 {[%clk 0:03:00]} 5. Nc3 {[%clk 0:02:59]}  e6 {[%clk 0:03:00]} 6. d4 {[%clk 0:02:54]}  cxd4 {[%clk 0:02:59]} 7. Qxd4 {[%clk 0:02:54]}  Be7 {[%clk 0:02:59]} 8. O-O {[%clk 0:02:51]}  O-O {[%clk 0:02:59]} 9. Rd1 {[%clk 0:02:48]}  a6 {[%clk 0:02:55]} 10. Bf1 {[%clk 0:02:41]}  b6 {[%clk 0:02:52]} 11. Nd2 {[%clk 0:02:29]}  Bb7 {[%clk 0:02:51]} 12. Nc4 {[%clk 0:02:29]}  Qc7 {[%clk 0:02:47]} 13. Nxd6 {[%clk 0:02:19]}  Bc6 {[%clk 0:02:24]} 14. e5 {[%clk 0:02:12]}  Nd5 {[%clk 0:02:24]} 15. Nxd5 {[%clk 0:02:09]}  Bxd5 {[%clk 0:02:25]} 16. c4 {[%clk 0:01:57]}  Bc6 {[%clk 0:02:14]} 17. Bf4 {[%clk 0:01:53]}  Rad8 {[%clk 0:02:08]} 18. Qe3 {[%clk 0:01:26]}  a5 {[%clk 0:02:07]} 19. b3 {[%clk 0:01:17]}  Nc5 {[%clk 0:02:01]} 20. Rd2 {[%clk 0:01:16]}  Rd7 {[%clk 0:01:55]} 21. Rad1 {[%clk 0:01:16]}  Rfd8 {[%clk 0:01:54]} 22. f3 {[%clk 0:01:05]}  h6 {[%clk 0:01:38]} 23. Rd4 {[%clk 0:01:03]}  Bf8 {[%clk 0:01:35]} 24. R1d2 {[%clk 0:01:02]}  Nb7 {[%clk 0:01:07]} 25. Qd3 {[%clk 0:00:59]}  Nc5 {[%clk 0:01:03]} 26. Qc3 {[%clk 0:00:59]}  Na6 {[%clk 0:00:40]} 27. Be2 {[%clk 0:00:57]}  Nc5 {[%clk 0:00:38]} 28. Bd1 {[%clk 0:00:56]}  Nb7 {[%clk 0:00:35]} 29. Bc2 {[%clk 0:00:56]}  Nxd6 {[%clk 0:00:32]} 30. exd6 {[%clk 0:00:56]}  Bxd6 {[%clk 0:00:30]} 31. Rxd6 {[%clk 0:00:55]}  Rxd6 {[%clk 0:00:30]} 32. Rxd6 {[%clk 0:00:55]}  Rxd6 {[%clk 0:00:31]} 33. Qe5 {[%clk 0:00:54]}  Bxa4 {[%clk 0:00:08]} 34. Qxd6 {[%clk 0:00:52]}  Qxd6 {[%clk 0:00:07]} 35. Bxd6 {[%clk 0:00:52]}  Bc6 {[%clk 0:00:07]} 36. Bc7 {[%clk 0:00:51]}  b5 {[%clk 0:00:07]} 37. cxb5 {[%clk 0:00:49]}  Bxb5 {[%clk 0:00:08]} 38. Bxa5 {[%clk 0:00:49]}  Bd3 {[%clk 0:00:06]} 39. Bxd3 {[%clk 0:00:48]} 1-0


[Site "https://www.chess.com"]

[Event "Titled Tuesday Blitz February 28 Early 2023"]
[White "Vivas Zamora, Fabian Ernesto"]
[Black "Gauri, Shankar"]
[WhiteFideId "3902480"]
[BlackFideId "5041350"]
[WhiteElo "2262"]
[BlackElo "2240"]
[Result "0-1"]
[Round "03"]
[TimeControl "180+2"]
[Date "2023.02.28"]
[WhiteClock "0:00:02"]
[BlackClock "0:00:19"]

1. c4 {[%clk 0:03:00]}  e5 {[%clk 0:02:54]} 2. Nc3 {[%clk 0:03:00]}  Bb4 {[%clk 0:02:54]} 3. Nd5 {[%clk 0:02:56]}  Bc5 {[%clk 0:02:54]} 4. Nf3 {[%clk 0:02:54]}  c6 {[%clk 0:02:49]} 5. Nc3 {[%clk 0:02:51]}  d6 {[%clk 0:02:39]} 6. e3 {[%clk 0:02:50]}  Nf6 {[%clk 0:02:38]} 7. d4 {[%clk 0:02:49]}  exd4 {[%clk 0:02:39]} 8. exd4 {[%clk 0:02:49]}  Bb6 {[%clk 0:02:37]} 9. h3 {[%clk 0:02:44]}  O-O {[%clk 0:02:37]} 10. Be2 {[%clk 0:02:44]}  Re8 {[%clk 0:02:35]} 11. O-O {[%clk 0:02:43]}  a5 {[%clk 0:02:33]} 12. Bf4 {[%clk 0:02:36]}  Bf5 {[%clk 0:02:26]} 13. Bd3 {[%clk 0:02:23]}  Bg6 {[%clk 0:02:22]} 14. Bxg6 {[%clk 0:02:18]}  hxg6 {[%clk 0:02:23]} 15. Qb3 {[%clk 0:02:14]}  Ra6 {[%clk 0:02:10]} 16. Na4 {[%clk 0:01:52]}  Re4 {[%clk 0:02:05]} 17. Bxd6 {[%clk 0:01:37]}  Qxd6 {[%clk 0:02:01]} 18. Nxb6 {[%clk 0:01:37]}  Qb4 {[%clk 0:01:52]} 19. Na4 {[%clk 0:01:29]}  Nbd7 {[%clk 0:01:42]} 20. Rfe1 {[%clk 0:01:15]}  b5 {[%clk 0:01:39]} 21. Nc3 {[%clk 0:01:08]}  Rxe1+ {[%clk 0:01:36]} 22. Rxe1 {[%clk 0:01:08]}  bxc4 {[%clk 0:01:30]} 23. Qc2 {[%clk 0:01:03]}  Rb6 {[%clk 0:01:27]} 24. Na4 {[%clk 0:00:59]}  Rb8 {[%clk 0:01:24]} 25. Rc1 {[%clk 0:00:54]}  Nb6 {[%clk 0:01:19]} 26. Nxb6 {[%clk 0:00:50]}  Qxb6 {[%clk 0:01:20]} 27. Qxc4 {[%clk 0:00:46]}  Qxb2 {[%clk 0:01:19]} 28. Ne5 {[%clk 0:00:38]}  Nd5 {[%clk 0:00:39]} 29. Nxc6 {[%clk 0:00:38]}  Re8 {[%clk 0:00:39]} 30. Ne5 {[%clk 0:00:33]}  Re7 {[%clk 0:00:30]} 31. Kh2 {[%clk 0:00:29]}  Qxf2 {[%clk 0:00:26]} 32. Qxd5 {[%clk 0:00:29]}  Qf4+ {[%clk 0:00:26]} 33. g3 {[%clk 0:00:27]}  Qd2+ {[%clk 0:00:26]} 34. Qg2 {[%clk 0:00:10]}  Qxc1 {[%clk 0:00:27]} 35. Qa8+ {[%clk 0:00:07]}  Kh7 {[%clk 0:00:26]} 36. Qe4 {[%clk 0:00:07]}  Qb2+ {[%clk 0:00:20]} 37. Kg1 {[%clk 0:00:04]}  Qa1+ {[%clk 0:00:20]} 38. Kf2 {[%clk 0:00:03]}  Qxa2+ {[%clk 0:00:20]} 39. Kg1 {[%clk 0:00:02]}  Qe6 {[%clk 0:00:19]} 40. Qh4+ {[%clk 0:00:02]}  Kg8 {[%clk 0:00:19]} 41. Qe4 {[%clk 0:00:02]}  f6 {[%clk 0:00:18]} 42. Qa8+ {[%clk 0:00:02]}  Re8 {[%clk 0:00:19]} 0-1


[Site "https://www.chess.com"]

[Event "Titled Tuesday Blitz February 28 Early 2023"]
[White "Vagman, Roy"]
[Black "Skvortsov, Andrei"]
[WhiteFideId "2828995"]
[BlackFideId "24108600"]
[WhiteElo "2188"]
[BlackElo "2259"]
[Result "1-0"]
[Round "03"]
[TimeControl "180+2"]
[Date "2023.02.28"]
[WhiteClock "0:00:05"]
[BlackClock "0:00:08"]

1. e4 {[%clk 0:03:00]}  d5 {[%clk 0:02:57]} 2. exd5 {[%clk 0:03:00]}  Qxd5 {[%clk 0:02:58]} 3. Nc3 {[%clk 0:03:00]}  Qe5+ {[%clk 0:02:57]} 4. Be2 {[%clk 0:02:59]}  Bg4 {[%clk 0:02:57]} 5. d4 {[%clk 0:02:58]}  Bxe2 {[%clk 0:02:58]} 6. Ngxe2 {[%clk 0:02:56]}  Qa5 {[%clk 0:02:58]} 7. O-O {[%clk 0:02:43]}  Nf6 {[%clk 0:02:58]} 8. a3 {[%clk 0:02:33]}  e6 {[%clk 0:02:52]} 9. Bf4 {[%clk 0:02:20]}  Nc6 {[%clk 0:02:43]} 10. b4 {[%clk 0:02:18]}  Qh5 {[%clk 0:02:41]} 11. Ng3 {[%clk 0:02:07]}  Qxd1 {[%clk 0:02:40]} 12. Raxd1 {[%clk 0:02:08]}  O-O-O {[%clk 0:02:38]} 13. Nb5 {[%clk 0:01:52]}  a6 {[%clk 0:02:04]} 14. Nxc7 {[%clk 0:01:49]}  Bd6 {[%clk 0:01:55]} 15. Bxd6 {[%clk 0:01:37]}  Rxd6 {[%clk 0:01:56]} 16. Na8 {[%clk 0:01:38]}  Ne7 {[%clk 0:00:58]} 17. c4 {[%clk 0:01:31]}  Rhd8 {[%clk 0:00:57]} 18. c5 {[%clk 0:01:30]}  Rxd4 {[%clk 0:00:56]} 19. Nb6+ {[%clk 0:01:30]}  Kb8 {[%clk 0:00:55]} 20. Rxd4 {[%clk 0:01:26]}  Rxd4 {[%clk 0:00:56]} 21. h3 {[%clk 0:01:22]}  Nc6 {[%clk 0:00:51]} 22. Rb1 {[%clk 0:01:10]}  Rd3 {[%clk 0:00:51]} 23. a4 {[%clk 0:00:55]}  Nd5 {[%clk 0:00:40]} 24. b5 {[%clk 0:00:55]}  axb5 {[%clk 0:00:36]} 25. axb5 {[%clk 0:00:56]}  Ne5 {[%clk 0:00:33]} 26. Nxd5 {[%clk 0:00:48]}  Rxd5 {[%clk 0:00:28]} 27. c6 {[%clk 0:00:41]}  bxc6 {[%clk 0:00:22]} 28. f4 {[%clk 0:00:40]}  Ng6 {[%clk 0:00:13]} 29. bxc6+ {[%clk 0:00:39]}  Kc8 {[%clk 0:00:14]} 30. Rb4 {[%clk 0:00:38]}  h5 {[%clk 0:00:09]} 31. Ne2 {[%clk 0:00:34]}  Rc5 {[%clk 0:00:07]} 32. Rb7 {[%clk 0:00:29]}  Nh8 {[%clk 0:00:07]} 33. Nd4 {[%clk 0:00:28]}  Rxc6 {[%clk 0:00:07]} 34. Re7 {[%clk 0:00:21]}  Rd6 {[%clk 0:00:06]} 35. Nb5 {[%clk 0:00:18]}  Rd7 {[%clk 0:00:07]} 36. Re8+ {[%clk 0:00:14]}  Rd8 {[%clk 0:00:07]} 37. Re7 {[%clk 0:00:12]}  Rd1+ {[%clk 0:00:07]} 38. Kf2 {[%clk 0:00:12]}  Rd7 {[%clk 0:00:08]} 39. Re8+ {[%clk 0:00:12]}  Rd8 {[%clk 0:00:09]} 40. Re7 {[%clk 0:00:13]}  h4 {[%clk 0:00:08]} 41. Na7+ {[%clk 0:00:12]}  Kb8 {[%clk 0:00:09]} 42. Nc6+ {[%clk 0:00:13]}  Kc8 {[%clk 0:00:09]} 43. Nxd8 {[%clk 0:00:13]}  Kxd8 {[%clk 0:00:10]} 44. Ra7 {[%clk 0:00:14]}  Ng6 {[%clk 0:00:10]} 45. Rxf7 {[%clk 0:00:14]}  Ke8 {[%clk 0:00:10]} 46. Rxg7 {[%clk 0:00:12]}  Nxf4 {[%clk 0:00:11]} 47. Rg4 {[%clk 0:00:12]}  Nd3+ {[%clk 0:00:11]} 48. Ke3 {[%clk 0:00:11]}  Nc5 {[%clk 0:00:12]} 49. Rxh4 {[%clk 0:00:11]}  Kf7 {[%clk 0:00:12]} 50. Rc4 {[%clk 0:00:10]}  Na6 {[%clk 0:00:10]} 51. g4 {[%clk 0:00:09]}  Nb8 {[%clk 0:00:09]} 52. Kf4 {[%clk 0:00:08]}  Kf6 {[%clk 0:00:09]} 53. g5+ {[%clk 0:00:08]}  Kg6 {[%clk 0:00:10]} 54. Kg4 {[%clk 0:00:08]}  Nd7 {[%clk 0:00:10]} 55. Re4 {[%clk 0:00:07]}  Nf8 {[%clk 0:00:08]} 56. h4 {[%clk 0:00:07]}  Kf7 {[%clk 0:00:09]} 57. h5 {[%clk 0:00:08]}  Nd7 {[%clk 0:00:09]} 58. Rf4+ {[%clk 0:00:06]}  Kg7 {[%clk 0:00:10]} 59. g6 {[%clk 0:00:06]}  Nf6+ {[%clk 0:00:08]} 60. Kg5 {[%clk 0:00:04]}  Ng8 {[%clk 0:00:07]} 61. Rf7+ {[%clk 0:00:05]}  Kh8 {[%clk 0:00:08]} 62. Rh7# {[%clk 0:00:05]} 1-0


[Site "https://www.chess.com"]